{"text_format":"3","workbook":"xlsx","n_sheets":2,"sheets":["Painonpudotuksen seuranta","laskutoimitukset"],"not_rendered":{"charts":1,"defined_names":10},"read":"whole","date_system":"1900"}

{"sheet":"Painonpudotuksen seuranta","index":0,"n_rows":19,"n_cols":9,"rows_kept":19,"merged":[[0,3,0,7],[0,8,0,9],[1,3,2,9]]}
[null,"TAVOITEPAINO","KAAVION NÄKYMÄ","Nimi",{"$nulls":4},"PAINONPUDOTUS"]
[{"$nulls":3},"SEURANTA"]
[null,{"v":172,"d":"172.0"},"VIIKOITTAINEN"]
[null,"NÄYTÄ TAVOITEPAINO","Kyllä"]
[null,"Painon seurantakaavio, joka seuraa nykyistä painoa, on tässä solussa. Valitse Kyllä solussa C4, jos haluat näyttää Tavoitepaino-rivin kaavioalueen yllä."]
[]
[null,"PÄIVÄMÄÄRÄ","PAINO"]
[null,{"$f":"TODAY()-77","v":"2022-01-21"},{"v":176,"d":"176.0"}]
[null,{"$f":"TODAY()-70","v":"2022-01-28"},{"v":176,"d":"176.0"}]
[null,{"$f":"TODAY()-63","v":"2022-02-04"},177.6]
[null,{"$f":"TODAY()-56","v":"2022-02-11"},176.5]
[null,{"$f":"TODAY()-49","v":"2022-02-18"},176.1]
[null,{"$f":"TODAY()-42","v":"2022-02-25"},{"v":174,"d":"174.0"}]
[null,{"$f":"TODAY()-35","v":"2022-03-04"},173.5]
[null,{"$f":"TODAY()-28","v":"2022-03-11"},{"v":173,"d":"173.0"}]
[null,{"$f":"TODAY()-21","v":"2022-03-18"},{"v":172,"d":"172.0"}]
[null,{"$f":"TODAY()-14","v":"2022-03-25"},{"v":172,"d":"172.0"}]
[null,{"$f":"TODAY()-7","v":"2022-04-01"},{"v":173,"d":"173.0"}]
[null,{"$f":"TODAY()","v":"2022-04-08"},{"v":172,"d":"172.0"}]

{"sheet":"laskutoimitukset","index":1,"n_rows":107,"n_cols":17,"rows_kept":107,"hidden":true}
["*** Taulukon on pysyttävä piilotettuna ***"]
[]
[{"$f":"COUNTIF(A5:A107,FALSE)","v":12},"Jaksot","Arvot",{"$nulls":3},{"$f":"COUNTIF(H5:H28,\">\"&0)","v":4},"Jaksot",null,"Arvot"]
[null,"Viikko",null,null,{"$f":"IFERROR(IF(NäytäTavoitepaino=\"Kyllä\", TRUE, FALSE),FALSE)","v":true},null,null,"Kuukausi","Kuun lopussa"]
[{"$f":"FALSE","v":false},{"$f":"IFERROR(IF(LEN('Painonpudotuksen seuranta'!$B8)=0,TODAY(),'Painonpudotuksen seuranta'!$B8),TODAY())","v":"2022-01-21"},{"$f":"IFERROR(IF(LEN('Painonpudotuksen seuranta'!$C8)=0,Tavoitepaino,'Painonpudotuksen seuranta'!$C8),0)","v":176},{"$f":"IFERROR(IF(MIN(KaavioAjanjaksot)=0,TODAY(),MIN(KaavioAjanjaksot)),TODAY())","v":"2022-01-21"},{"$f":"IFERROR(IF($A$5,0,IF($E$4,Tavoitepaino,NA())),0)","v":172},null,null,{"$f":"IFERROR(IF($A$5,TODAY(),DATE(YEAR($B5),MONTH($B5),1)),\"\")","v":"2022-01-01"},{"$f":"IFERROR(IF($A$5,TODAY(),EOMONTH($H5,0)),\"\")","v":"2022-01-31"},{"$f":"IFERROR(IF($A$5,0,AVERAGEIFS(Paino[PAINO],Paino[PÄIVÄMÄÄRÄ],\">=\"&$H5,Paino[PÄIVÄMÄÄRÄ],\"<=\"&$I5)),NA())","v":176}]
[{"$f":"IF((LEN('Painonpudotuksen seuranta'!$C9)=0),TRUE)","v":false},{"$f":"IFERROR(IF(A6,0,IF(LEN('Painonpudotuksen seuranta'!$B9)=0,0,'Painonpudotuksen seuranta'!$B9)),\"\")","v":"2022-01-28"},{"$f":"IFERROR(IF(A6,0,IF(LEN('Painonpudotuksen seuranta'!$C9)=0,0,'Painonpudotuksen seuranta'!$C9)),\"\")","v":176},{"$f":"IFERROR(IF(MAX(KaavioAjanjaksot)=0,TODAY(),MAX(KaavioAjanjaksot)),TODAY())","v":"2022-04-08"},{"$f":"IFERROR(IF($A$5,0,IF($E$4,Tavoitepaino,NA())),0)","v":172},null,null,{"$f":"IF($I5+1>MAX($B:$B),NA(),$I5+1)","v":"2022-02-01"},{"$f":"EOMONTH($H6,0)","v":"2022-02-28"},{"$f":"IFERROR(AVERAGEIFS(Paino[PAINO],Paino[PÄIVÄMÄÄRÄ],\">=\"&$H6,Paino[PÄIVÄMÄÄRÄ],\"<=\"&$I6),NA())","v":176.05}]
[{"$f":"IF((LEN('Painonpudotuksen seuranta'!$C10)=0),TRUE)","v":false},{"$f":"IFERROR(IF(A7,0,IF(LEN('Painonpudotuksen seuranta'!$B10)=0,0,'Painonpudotuksen seuranta'!$B10)),\"\")","v":"2022-02-04"},{"$f":"IFERROR(IF(A7,0,IF(LEN('Painonpudotuksen seuranta'!$C10)=0,0,'Painonpudotuksen seuranta'!$C10)),\"\")","v":177.6},{"$nulls":4},"2022-03-01","2022-03-31",{"$f":"IFERROR(AVERAGEIFS(Paino[PAINO],Paino[PÄIVÄMÄÄRÄ],\">=\"&$H7,Paino[PÄIVÄMÄÄRÄ],\"<=\"&$I7),NA())","v":172.625}]
[{"$f":"IF((LEN('Painonpudotuksen seuranta'!$C11)=0),TRUE)","v":false},{"$f":"IFERROR(IF(A8,0,IF(LEN('Painonpudotuksen seuranta'!$B11)=0,0,'Painonpudotuksen seuranta'!$B11)),\"\")","v":"2022-02-11"},{"$f":"IFERROR(IF(A8,0,IF(LEN('Painonpudotuksen seuranta'!$C11)=0,0,'Painonpudotuksen seuranta'!$C11)),\"\")","v":176.5},{"$nulls":4},"2022-04-01","2022-04-30",{"$f":"IFERROR(AVERAGEIFS(Paino[PAINO],Paino[PÄIVÄMÄÄRÄ],\">=\"&$H8,Paino[PÄIVÄMÄÄRÄ],\"<=\"&$I8),NA())","v":172.5}]
[{"$f":"IF((LEN('Painonpudotuksen seuranta'!$C12)=0),TRUE)","v":false},{"$f":"IFERROR(IF(A9,0,IF(LEN('Painonpudotuksen seuranta'!$B12)=0,0,'Painonpudotuksen seuranta'!$B12)),\"\")","v":"2022-02-18"},{"$f":"IFERROR(IF(A9,0,IF(LEN('Painonpudotuksen seuranta'!$C12)=0,0,'Painonpudotuksen seuranta'!$C12)),\"\")","v":176.1},{"$nulls":4},{"$error":"#N/A"},{"$error":"#N/A"},{"$f":"IFERROR(AVERAGEIFS(Paino[PAINO],Paino[PÄIVÄMÄÄRÄ],\">=\"&$H9,Paino[PÄIVÄMÄÄRÄ],\"<=\"&$I9),NA())","v":{"$error":"#N/A"}}]
[{"$f":"IF((LEN('Painonpudotuksen seuranta'!$C13)=0),TRUE)","v":false},{"$f":"IFERROR(IF(A10,0,IF(LEN('Painonpudotuksen seuranta'!$B13)=0,0,'Painonpudotuksen seuranta'!$B13)),\"\")","v":"2022-02-25"},{"$f":"IFERROR(IF(A10,0,IF(LEN('Painonpudotuksen seuranta'!$C13)=0,0,'Painonpudotuksen seuranta'!$C13)),\"\")","v":174},{"$nulls":4},{"$error":"#N/A"},{"$error":"#N/A"},{"$f":"IFERROR(AVERAGEIFS(Paino[PAINO],Paino[PÄIVÄMÄÄRÄ],\">=\"&$H10,Paino[PÄIVÄMÄÄRÄ],\"<=\"&$I10),NA())","v":{"$error":"#N/A"}}]
[{"$f":"IF((LEN('Painonpudotuksen seuranta'!$C14)=0),TRUE)","v":false},{"$f":"IFERROR(IF(A11,0,IF(LEN('Painonpudotuksen seuranta'!$B14)=0,0,'Painonpudotuksen seuranta'!$B14)),\"\")","v":"2022-03-04"},{"$f":"IFERROR(IF(A11,0,IF(LEN('Painonpudotuksen seuranta'!$C14)=0,0,'Painonpudotuksen seuranta'!$C14)),\"\")","v":173.5},{"$nulls":4},{"$error":"#N/A"},{"$error":"#N/A"},{"$f":"IFERROR(AVERAGEIFS(Paino[PAINO],Paino[PÄIVÄMÄÄRÄ],\">=\"&$H11,Paino[PÄIVÄMÄÄRÄ],\"<=\"&$I11),NA())","v":{"$error":"#N/A"}},{"$nulls":6},{"$f":"MAX($B:$B)","v":"2022-04-08"}]
[{"$f":"IF((LEN('Painonpudotuksen seuranta'!$C15)=0),TRUE)","v":false},{"$f":"IFERROR(IF(A12,0,IF(LEN('Painonpudotuksen seuranta'!$B15)=0,0,'Painonpudotuksen seuranta'!$B15)),\"\")","v":"2022-03-11"},{"$f":"IFERROR(IF(A12,0,IF(LEN('Painonpudotuksen seuranta'!$C15)=0,0,'Painonpudotuksen seuranta'!$C15)),\"\")","v":173},{"$nulls":4},{"$error":"#N/A"},{"$error":"#N/A"},{"$f":"IFERROR(AVERAGEIFS(Paino[PAINO],Paino[PÄIVÄMÄÄRÄ],\">=\"&$H12,Paino[PÄIVÄMÄÄRÄ],\"<=\"&$I12),NA())","v":{"$error":"#N/A"}}]
[{"$f":"IF((LEN('Painonpudotuksen seuranta'!$C16)=0),TRUE)","v":false},{"$f":"IFERROR(IF(A13,0,IF(LEN('Painonpudotuksen seuranta'!$B16)=0,0,'Painonpudotuksen seuranta'!$B16)),\"\")","v":"2022-03-18"},{"$f":"IFERROR(IF(A13,0,IF(LEN('Painonpudotuksen seuranta'!$C16)=0,0,'Painonpudotuksen seuranta'!$C16)),\"\")","v":172},{"$nulls":4},{"$error":"#N/A"},{"$error":"#N/A"},{"$f":"IFERROR(AVERAGEIFS(Paino[PAINO],Paino[PÄIVÄMÄÄRÄ],\">=\"&$H13,Paino[PÄIVÄMÄÄRÄ],\"<=\"&$I13),NA())","v":{"$error":"#N/A"}}]
[{"$f":"IF((LEN('Painonpudotuksen seuranta'!$C17)=0),TRUE)","v":false},{"$f":"IFERROR(IF(A14,0,IF(LEN('Painonpudotuksen seuranta'!$B17)=0,0,'Painonpudotuksen seuranta'!$B17)),\"\")","v":"2022-03-25"},{"$f":"IFERROR(IF(A14,0,IF(LEN('Painonpudotuksen seuranta'!$C17)=0,0,'Painonpudotuksen seuranta'!$C17)),\"\")","v":172},{"$nulls":4},{"$error":"#N/A"},{"$error":"#N/A"},{"$f":"IFERROR(AVERAGEIFS(Paino[PAINO],Paino[PÄIVÄMÄÄRÄ],\">=\"&$H14,Paino[PÄIVÄMÄÄRÄ],\"<=\"&$I14),NA())","v":{"$error":"#N/A"}}]
[{"$f":"IF((LEN('Painonpudotuksen seuranta'!$C18)=0),TRUE)","v":false},{"$f":"IFERROR(IF(A15,0,IF(LEN('Painonpudotuksen seuranta'!$B18)=0,0,'Painonpudotuksen seuranta'!$B18)),\"\")","v":"2022-04-01"},{"$f":"IFERROR(IF(A15,0,IF(LEN('Painonpudotuksen seuranta'!$C18)=0,0,'Painonpudotuksen seuranta'!$C18)),\"\")","v":173},{"$nulls":4},{"$error":"#N/A"},{"$error":"#N/A"},{"$f":"IFERROR(AVERAGEIFS(Paino[PAINO],Paino[PÄIVÄMÄÄRÄ],\">=\"&$H15,Paino[PÄIVÄMÄÄRÄ],\"<=\"&$I15),NA())","v":{"$error":"#N/A"}}]
[{"$f":"IF((LEN('Painonpudotuksen seuranta'!$C19)=0),TRUE)","v":false},{"$f":"IFERROR(IF(A16,0,IF(LEN('Painonpudotuksen seuranta'!$B19)=0,0,'Painonpudotuksen seuranta'!$B19)),\"\")","v":"2022-04-08"},{"$f":"IFERROR(IF(A16,0,IF(LEN('Painonpudotuksen seuranta'!$C19)=0,0,'Painonpudotuksen seuranta'!$C19)),\"\")","v":172},{"$nulls":4},{"$error":"#N/A"},{"$error":"#N/A"},{"$f":"IFERROR(AVERAGEIFS(Paino[PAINO],Paino[PÄIVÄMÄÄRÄ],\">=\"&$H16,Paino[PÄIVÄMÄÄRÄ],\"<=\"&$I16),NA())","v":{"$error":"#N/A"}}]
[{"$f":"IF((LEN('Painonpudotuksen seuranta'!$C20)=0),TRUE)","v":true},{"$f":"IFERROR(IF(A17,0,IF(LEN('Painonpudotuksen seuranta'!$B20)=0,0,'Painonpudotuksen seuranta'!$B20)),\"\")","v":"00:00:00"},{"$f":"IFERROR(IF(A17,0,IF(LEN('Painonpudotuksen seuranta'!$C20)=0,0,'Painonpudotuksen seuranta'!$C20)),\"\")","v":0},{"$nulls":4},{"$error":"#N/A"},{"$error":"#N/A"},{"$f":"IFERROR(AVERAGEIFS(Paino[PAINO],Paino[PÄIVÄMÄÄRÄ],\">=\"&$H17,Paino[PÄIVÄMÄÄRÄ],\"<=\"&$I17),NA())","v":{"$error":"#N/A"}}]
[{"$f":"IF((LEN('Painonpudotuksen seuranta'!$C21)=0),TRUE)","v":true},{"$f":"IFERROR(IF(A18,0,IF(LEN('Painonpudotuksen seuranta'!$B21)=0,0,'Painonpudotuksen seuranta'!$B21)),\"\")","v":"00:00:00"},{"$f":"IFERROR(IF(A18,0,IF(LEN('Painonpudotuksen seuranta'!$C21)=0,0,'Painonpudotuksen seuranta'!$C21)),\"\")","v":0},{"$nulls":4},{"$error":"#N/A"},{"$error":"#N/A"},{"$f":"IFERROR(AVERAGEIFS(Paino[PAINO],Paino[PÄIVÄMÄÄRÄ],\">=\"&$H18,Paino[PÄIVÄMÄÄRÄ],\"<=\"&$I18),NA())","v":{"$error":"#N/A"}}]
[{"$f":"IF((LEN('Painonpudotuksen seuranta'!$C22)=0),TRUE)","v":true},{"$f":"IFERROR(IF(A19,0,IF(LEN('Painonpudotuksen seuranta'!$B22)=0,0,'Painonpudotuksen seuranta'!$B22)),\"\")","v":"00:00:00"},{"$f":"IFERROR(IF(A19,0,IF(LEN('Painonpudotuksen seuranta'!$C22)=0,0,'Painonpudotuksen seuranta'!$C22)),\"\")","v":0},{"$nulls":4},{"$error":"#N/A"},{"$error":"#N/A"},{"$f":"IFERROR(AVERAGEIFS(Paino[PAINO],Paino[PÄIVÄMÄÄRÄ],\">=\"&$H19,Paino[PÄIVÄMÄÄRÄ],\"<=\"&$I19),NA())","v":{"$error":"#N/A"}}]
[{"$f":"IF((LEN('Painonpudotuksen seuranta'!$C23)=0),TRUE)","v":true},{"$f":"IFERROR(IF(A20,0,IF(LEN('Painonpudotuksen seuranta'!$B23)=0,0,'Painonpudotuksen seuranta'!$B23)),\"\")","v":"00:00:00"},{"$f":"IFERROR(IF(A20,0,IF(LEN('Painonpudotuksen seuranta'!$C23)=0,0,'Painonpudotuksen seuranta'!$C23)),\"\")","v":0},{"$nulls":4},{"$error":"#N/A"},{"$error":"#N/A"},{"$f":"IFERROR(AVERAGEIFS(Paino[PAINO],Paino[PÄIVÄMÄÄRÄ],\">=\"&$H20,Paino[PÄIVÄMÄÄRÄ],\"<=\"&$I20),NA())","v":{"$error":"#N/A"}}]
[{"$f":"IF((LEN('Painonpudotuksen seuranta'!$C24)=0),TRUE)","v":true},{"$f":"IFERROR(IF(A21,0,IF(LEN('Painonpudotuksen seuranta'!$B24)=0,0,'Painonpudotuksen seuranta'!$B24)),\"\")","v":"00:00:00"},{"$f":"IFERROR(IF(A21,0,IF(LEN('Painonpudotuksen seuranta'!$C24)=0,0,'Painonpudotuksen seuranta'!$C24)),\"\")","v":0},{"$nulls":4},{"$error":"#N/A"},{"$error":"#N/A"},{"$f":"IFERROR(AVERAGEIFS(Paino[PAINO],Paino[PÄIVÄMÄÄRÄ],\">=\"&$H21,Paino[PÄIVÄMÄÄRÄ],\"<=\"&$I21),NA())","v":{"$error":"#N/A"}}]
[{"$f":"IF((LEN('Painonpudotuksen seuranta'!$C25)=0),TRUE)","v":true},{"$f":"IFERROR(IF(A22,0,IF(LEN('Painonpudotuksen seuranta'!$B25)=0,0,'Painonpudotuksen seuranta'!$B25)),\"\")","v":"00:00:00"},{"$f":"IFERROR(IF(A22,0,IF(LEN('Painonpudotuksen seuranta'!$C25)=0,0,'Painonpudotuksen seuranta'!$C25)),\"\")","v":0},{"$nulls":4},{"$error":"#N/A"},{"$error":"#N/A"},{"$f":"IFERROR(AVERAGEIFS(Paino[PAINO],Paino[PÄIVÄMÄÄRÄ],\">=\"&$H22,Paino[PÄIVÄMÄÄRÄ],\"<=\"&$I22),NA())","v":{"$error":"#N/A"}}]
[{"$f":"IF((LEN('Painonpudotuksen seuranta'!$C26)=0),TRUE)","v":true},{"$f":"IFERROR(IF(A23,0,IF(LEN('Painonpudotuksen seuranta'!$B26)=0,0,'Painonpudotuksen seuranta'!$B26)),\"\")","v":"00:00:00"},{"$f":"IFERROR(IF(A23,0,IF(LEN('Painonpudotuksen seuranta'!$C26)=0,0,'Painonpudotuksen seuranta'!$C26)),\"\")","v":0},{"$nulls":4},{"$error":"#N/A"},{"$error":"#N/A"},{"$f":"IFERROR(AVERAGEIFS(Paino[PAINO],Paino[PÄIVÄMÄÄRÄ],\">=\"&$H23,Paino[PÄIVÄMÄÄRÄ],\"<=\"&$I23),NA())","v":{"$error":"#N/A"}}]
[{"$f":"IF((LEN('Painonpudotuksen seuranta'!$C27)=0),TRUE)","v":true},{"$f":"IFERROR(IF(A24,0,IF(LEN('Painonpudotuksen seuranta'!$B27)=0,0,'Painonpudotuksen seuranta'!$B27)),\"\")","v":"00:00:00"},{"$f":"IFERROR(IF(A24,0,IF(LEN('Painonpudotuksen seuranta'!$C27)=0,0,'Painonpudotuksen seuranta'!$C27)),\"\")","v":0},{"$nulls":4},{"$error":"#N/A"},{"$error":"#N/A"},{"$f":"IFERROR(AVERAGEIFS(Paino[PAINO],Paino[PÄIVÄMÄÄRÄ],\">=\"&$H24,Paino[PÄIVÄMÄÄRÄ],\"<=\"&$I24),NA())","v":{"$error":"#N/A"}}]
[{"$f":"IF((LEN('Painonpudotuksen seuranta'!$C28)=0),TRUE)","v":true},{"$f":"IFERROR(IF(A25,0,IF(LEN('Painonpudotuksen seuranta'!$B28)=0,0,'Painonpudotuksen seuranta'!$B28)),\"\")","v":"00:00:00"},{"$f":"IFERROR(IF(A25,0,IF(LEN('Painonpudotuksen seuranta'!$C28)=0,0,'Painonpudotuksen seuranta'!$C28)),\"\")","v":0},{"$nulls":4},{"$error":"#N/A"},{"$error":"#N/A"},{"$f":"IFERROR(AVERAGEIFS(Paino[PAINO],Paino[PÄIVÄMÄÄRÄ],\">=\"&$H25,Paino[PÄIVÄMÄÄRÄ],\"<=\"&$I25),NA())","v":{"$error":"#N/A"}}]
[{"$f":"IF((LEN('Painonpudotuksen seuranta'!$C29)=0),TRUE)","v":true},{"$f":"IFERROR(IF(A26,0,IF(LEN('Painonpudotuksen seuranta'!$B29)=0,0,'Painonpudotuksen seuranta'!$B29)),\"\")","v":"00:00:00"},{"$f":"IFERROR(IF(A26,0,IF(LEN('Painonpudotuksen seuranta'!$C29)=0,0,'Painonpudotuksen seuranta'!$C29)),\"\")","v":0},{"$nulls":4},{"$error":"#N/A"},{"$error":"#N/A"},{"$f":"IFERROR(AVERAGEIFS(Paino[PAINO],Paino[PÄIVÄMÄÄRÄ],\">=\"&$H26,Paino[PÄIVÄMÄÄRÄ],\"<=\"&$I26),NA())","v":{"$error":"#N/A"}}]
[{"$f":"IF((LEN('Painonpudotuksen seuranta'!$C30)=0),TRUE)","v":true},{"$f":"IFERROR(IF(A27,0,IF(LEN('Painonpudotuksen seuranta'!$B30)=0,0,'Painonpudotuksen seuranta'!$B30)),\"\")","v":"00:00:00"},{"$f":"IFERROR(IF(A27,0,IF(LEN('Painonpudotuksen seuranta'!$C30)=0,0,'Painonpudotuksen seuranta'!$C30)),\"\")","v":0},{"$nulls":4},{"$error":"#N/A"},{"$error":"#N/A"},{"$f":"IFERROR(AVERAGEIFS(Paino[PAINO],Paino[PÄIVÄMÄÄRÄ],\">=\"&$H27,Paino[PÄIVÄMÄÄRÄ],\"<=\"&$I27),NA())","v":{"$error":"#N/A"}}]
[{"$f":"IF((LEN('Painonpudotuksen seuranta'!$C31)=0),TRUE)","v":true},{"$f":"IFERROR(IF(A28,0,IF(LEN('Painonpudotuksen seuranta'!$B31)=0,0,'Painonpudotuksen seuranta'!$B31)),\"\")","v":"00:00:00"},{"$f":"IFERROR(IF(A28,0,IF(LEN('Painonpudotuksen seuranta'!$C31)=0,0,'Painonpudotuksen seuranta'!$C31)),\"\")","v":0},{"$nulls":4},{"$error":"#N/A"},{"$error":"#N/A"},{"$f":"IFERROR(AVERAGEIFS(Paino[PAINO],Paino[PÄIVÄMÄÄRÄ],\">=\"&$H28,Paino[PÄIVÄMÄÄRÄ],\"<=\"&$I28),NA())","v":{"$error":"#N/A"}}]
[{"$f":"IF((LEN('Painonpudotuksen seuranta'!$C32)=0),TRUE)","v":true},{"$f":"IFERROR(IF(A29,0,IF(LEN('Painonpudotuksen seuranta'!$B32)=0,0,'Painonpudotuksen seuranta'!$B32)),\"\")","v":"00:00:00"},{"$f":"IFERROR(IF(A29,0,IF(LEN('Painonpudotuksen seuranta'!$C32)=0,0,'Painonpudotuksen seuranta'!$C32)),\"\")","v":0}]
[{"$f":"IF((LEN('Painonpudotuksen seuranta'!$C33)=0),TRUE)","v":true},{"$f":"IFERROR(IF(A30,0,IF(LEN('Painonpudotuksen seuranta'!$B33)=0,0,'Painonpudotuksen seuranta'!$B33)),\"\")","v":"00:00:00"},{"$f":"IFERROR(IF(A30,0,IF(LEN('Painonpudotuksen seuranta'!$C33)=0,0,'Painonpudotuksen seuranta'!$C33)),\"\")","v":0}]
[{"$f":"IF((LEN('Painonpudotuksen seuranta'!$C34)=0),TRUE)","v":true},{"$f":"IFERROR(IF(A31,0,IF(LEN('Painonpudotuksen seuranta'!$B34)=0,0,'Painonpudotuksen seuranta'!$B34)),\"\")","v":"00:00:00"},{"$f":"IFERROR(IF(A31,0,IF(LEN('Painonpudotuksen seuranta'!$C34)=0,0,'Painonpudotuksen seuranta'!$C34)),\"\")","v":0}]
[{"$f":"IF((LEN('Painonpudotuksen seuranta'!$C35)=0),TRUE)","v":true},{"$f":"IFERROR(IF(A32,0,IF(LEN('Painonpudotuksen seuranta'!$B35)=0,0,'Painonpudotuksen seuranta'!$B35)),\"\")","v":"00:00:00"},{"$f":"IFERROR(IF(A32,0,IF(LEN('Painonpudotuksen seuranta'!$C35)=0,0,'Painonpudotuksen seuranta'!$C35)),\"\")","v":0}]
[{"$f":"IF((LEN('Painonpudotuksen seuranta'!$C36)=0),TRUE)","v":true},{"$f":"IFERROR(IF(A33,0,IF(LEN('Painonpudotuksen seuranta'!$B36)=0,0,'Painonpudotuksen seuranta'!$B36)),\"\")","v":"00:00:00"},{"$f":"IFERROR(IF(A33,0,IF(LEN('Painonpudotuksen seuranta'!$C36)=0,0,'Painonpudotuksen seuranta'!$C36)),\"\")","v":0}]
[{"$f":"IF((LEN('Painonpudotuksen seuranta'!$C37)=0),TRUE)","v":true},{"$f":"IFERROR(IF(A34,0,IF(LEN('Painonpudotuksen seuranta'!$B37)=0,0,'Painonpudotuksen seuranta'!$B37)),\"\")","v":"00:00:00"},{"$f":"IFERROR(IF(A34,0,IF(LEN('Painonpudotuksen seuranta'!$C37)=0,0,'Painonpudotuksen seuranta'!$C37)),\"\")","v":0}]
[{"$f":"IF((LEN('Painonpudotuksen seuranta'!$C38)=0),TRUE)","v":true},{"$f":"IFERROR(IF(A35,0,IF(LEN('Painonpudotuksen seuranta'!$B38)=0,0,'Painonpudotuksen seuranta'!$B38)),\"\")","v":"00:00:00"},{"$f":"IFERROR(IF(A35,0,IF(LEN('Painonpudotuksen seuranta'!$C38)=0,0,'Painonpudotuksen seuranta'!$C38)),\"\")","v":0}]
[{"$f":"IF((LEN('Painonpudotuksen seuranta'!$C39)=0),TRUE)","v":true},{"$f":"IFERROR(IF(A36,0,IF(LEN('Painonpudotuksen seuranta'!$B39)=0,0,'Painonpudotuksen seuranta'!$B39)),\"\")","v":"00:00:00"},{"$f":"IFERROR(IF(A36,0,IF(LEN('Painonpudotuksen seuranta'!$C39)=0,0,'Painonpudotuksen seuranta'!$C39)),\"\")","v":0}]
[{"$f":"IF((LEN('Painonpudotuksen seuranta'!$C40)=0),TRUE)","v":true},{"$f":"IFERROR(IF(A37,0,IF(LEN('Painonpudotuksen seuranta'!$B40)=0,0,'Painonpudotuksen seuranta'!$B40)),\"\")","v":"00:00:00"},{"$f":"IFERROR(IF(A37,0,IF(LEN('Painonpudotuksen seuranta'!$C40)=0,0,'Painonpudotuksen seuranta'!$C40)),\"\")","v":0}]
[{"$f":"IF((LEN('Painonpudotuksen seuranta'!$C41)=0),TRUE)","v":true},{"$f":"IFERROR(IF(A38,0,IF(LEN('Painonpudotuksen seuranta'!$B41)=0,0,'Painonpudotuksen seuranta'!$B41)),\"\")","v":"00:00:00"},{"$f":"IFERROR(IF(A38,0,IF(LEN('Painonpudotuksen seuranta'!$C41)=0,0,'Painonpudotuksen seuranta'!$C41)),\"\")","v":0}]
[{"$f":"IF((LEN('Painonpudotuksen seuranta'!$C42)=0),TRUE)","v":true},{"$f":"IFERROR(IF(A39,0,IF(LEN('Painonpudotuksen seuranta'!$B42)=0,0,'Painonpudotuksen seuranta'!$B42)),\"\")","v":"00:00:00"},{"$f":"IFERROR(IF(A39,0,IF(LEN('Painonpudotuksen seuranta'!$C42)=0,0,'Painonpudotuksen seuranta'!$C42)),\"\")","v":0}]
[{"$f":"IF((LEN('Painonpudotuksen seuranta'!$C43)=0),TRUE)","v":true},{"$f":"IFERROR(IF(A40,0,IF(LEN('Painonpudotuksen seuranta'!$B43)=0,0,'Painonpudotuksen seuranta'!$B43)),\"\")","v":"00:00:00"},{"$f":"IFERROR(IF(A40,0,IF(LEN('Painonpudotuksen seuranta'!$C43)=0,0,'Painonpudotuksen seuranta'!$C43)),\"\")","v":0}]
[{"$f":"IF((LEN('Painonpudotuksen seuranta'!$C44)=0),TRUE)","v":true},{"$f":"IFERROR(IF(A41,0,IF(LEN('Painonpudotuksen seuranta'!$B44)=0,0,'Painonpudotuksen seuranta'!$B44)),\"\")","v":"00:00:00"},{"$f":"IFERROR(IF(A41,0,IF(LEN('Painonpudotuksen seuranta'!$C44)=0,0,'Painonpudotuksen seuranta'!$C44)),\"\")","v":0}]
[{"$f":"IF((LEN('Painonpudotuksen seuranta'!$C45)=0),TRUE)","v":true},{"$f":"IFERROR(IF(A42,0,IF(LEN('Painonpudotuksen seuranta'!$B45)=0,0,'Painonpudotuksen seuranta'!$B45)),\"\")","v":"00:00:00"},{"$f":"IFERROR(IF(A42,0,IF(LEN('Painonpudotuksen seuranta'!$C45)=0,0,'Painonpudotuksen seuranta'!$C45)),\"\")","v":0}]
[{"$f":"IF((LEN('Painonpudotuksen seuranta'!$C46)=0),TRUE)","v":true},{"$f":"IFERROR(IF(A43,0,IF(LEN('Painonpudotuksen seuranta'!$B46)=0,0,'Painonpudotuksen seuranta'!$B46)),\"\")","v":"00:00:00"},{"$f":"IFERROR(IF(A43,0,IF(LEN('Painonpudotuksen seuranta'!$C46)=0,0,'Painonpudotuksen seuranta'!$C46)),\"\")","v":0}]
[{"$f":"IF((LEN('Painonpudotuksen seuranta'!$C47)=0),TRUE)","v":true},{"$f":"IFERROR(IF(A44,0,IF(LEN('Painonpudotuksen seuranta'!$B47)=0,0,'Painonpudotuksen seuranta'!$B47)),\"\")","v":"00:00:00"},{"$f":"IFERROR(IF(A44,0,IF(LEN('Painonpudotuksen seuranta'!$C47)=0,0,'Painonpudotuksen seuranta'!$C47)),\"\")","v":0}]
[{"$f":"IF((LEN('Painonpudotuksen seuranta'!$C48)=0),TRUE)","v":true},{"$f":"IFERROR(IF(A45,0,IF(LEN('Painonpudotuksen seuranta'!$B48)=0,0,'Painonpudotuksen seuranta'!$B48)),\"\")","v":"00:00:00"},{"$f":"IFERROR(IF(A45,0,IF(LEN('Painonpudotuksen seuranta'!$C48)=0,0,'Painonpudotuksen seuranta'!$C48)),\"\")","v":0}]
[{"$f":"IF((LEN('Painonpudotuksen seuranta'!$C49)=0),TRUE)","v":true},{"$f":"IFERROR(IF(A46,0,IF(LEN('Painonpudotuksen seuranta'!$B49)=0,0,'Painonpudotuksen seuranta'!$B49)),\"\")","v":"00:00:00"},{"$f":"IFERROR(IF(A46,0,IF(LEN('Painonpudotuksen seuranta'!$C49)=0,0,'Painonpudotuksen seuranta'!$C49)),\"\")","v":0}]
[{"$f":"IF((LEN('Painonpudotuksen seuranta'!$C50)=0),TRUE)","v":true},{"$f":"IFERROR(IF(A47,0,IF(LEN('Painonpudotuksen seuranta'!$B50)=0,0,'Painonpudotuksen seuranta'!$B50)),\"\")","v":"00:00:00"},{"$f":"IFERROR(IF(A47,0,IF(LEN('Painonpudotuksen seuranta'!$C50)=0,0,'Painonpudotuksen seuranta'!$C50)),\"\")","v":0}]
[{"$f":"IF((LEN('Painonpudotuksen seuranta'!$C51)=0),TRUE)","v":true},{"$f":"IFERROR(IF(A48,0,IF(LEN('Painonpudotuksen seuranta'!$B51)=0,0,'Painonpudotuksen seuranta'!$B51)),\"\")","v":"00:00:00"},{"$f":"IFERROR(IF(A48,0,IF(LEN('Painonpudotuksen seuranta'!$C51)=0,0,'Painonpudotuksen seuranta'!$C51)),\"\")","v":0}]
[{"$f":"IF((LEN('Painonpudotuksen seuranta'!$C52)=0),TRUE)","v":true},{"$f":"IFERROR(IF(A49,0,IF(LEN('Painonpudotuksen seuranta'!$B52)=0,0,'Painonpudotuksen seuranta'!$B52)),\"\")","v":"00:00:00"},{"$f":"IFERROR(IF(A49,0,IF(LEN('Painonpudotuksen seuranta'!$C52)=0,0,'Painonpudotuksen seuranta'!$C52)),\"\")","v":0}]
[{"$f":"IF((LEN('Painonpudotuksen seuranta'!$C53)=0),TRUE)","v":true},{"$f":"IFERROR(IF(A50,0,IF(LEN('Painonpudotuksen seuranta'!$B53)=0,0,'Painonpudotuksen seuranta'!$B53)),\"\")","v":"00:00:00"},{"$f":"IFERROR(IF(A50,0,IF(LEN('Painonpudotuksen seuranta'!$C53)=0,0,'Painonpudotuksen seuranta'!$C53)),\"\")","v":0}]
[{"$f":"IF((LEN('Painonpudotuksen seuranta'!$C54)=0),TRUE)","v":true},{"$f":"IFERROR(IF(A51,0,IF(LEN('Painonpudotuksen seuranta'!$B54)=0,0,'Painonpudotuksen seuranta'!$B54)),\"\")","v":"00:00:00"},{"$f":"IFERROR(IF(A51,0,IF(LEN('Painonpudotuksen seuranta'!$C54)=0,0,'Painonpudotuksen seuranta'!$C54)),\"\")","v":0}]
[{"$f":"IF((LEN('Painonpudotuksen seuranta'!$C55)=0),TRUE)","v":true},{"$f":"IFERROR(IF(A52,0,IF(LEN('Painonpudotuksen seuranta'!$B55)=0,0,'Painonpudotuksen seuranta'!$B55)),\"\")","v":"00:00:00"},{"$f":"IFERROR(IF(A52,0,IF(LEN('Painonpudotuksen seuranta'!$C55)=0,0,'Painonpudotuksen seuranta'!$C55)),\"\")","v":0}]
[{"$f":"IF((LEN('Painonpudotuksen seuranta'!$C56)=0),TRUE)","v":true},{"$f":"IFERROR(IF(A53,0,IF(LEN('Painonpudotuksen seuranta'!$B56)=0,0,'Painonpudotuksen seuranta'!$B56)),\"\")","v":"00:00:00"},{"$f":"IFERROR(IF(A53,0,IF(LEN('Painonpudotuksen seuranta'!$C56)=0,0,'Painonpudotuksen seuranta'!$C56)),\"\")","v":0}]
[{"$f":"IF((LEN('Painonpudotuksen seuranta'!$C57)=0),TRUE)","v":true},{"$f":"IFERROR(IF(A54,0,IF(LEN('Painonpudotuksen seuranta'!$B57)=0,0,'Painonpudotuksen seuranta'!$B57)),\"\")","v":"00:00:00"},{"$f":"IFERROR(IF(A54,0,IF(LEN('Painonpudotuksen seuranta'!$C57)=0,0,'Painonpudotuksen seuranta'!$C57)),\"\")","v":0}]
[{"$f":"IF((LEN('Painonpudotuksen seuranta'!$C58)=0),TRUE)","v":true},{"$f":"IFERROR(IF(A55,0,IF(LEN('Painonpudotuksen seuranta'!$B58)=0,0,'Painonpudotuksen seuranta'!$B58)),\"\")","v":"00:00:00"},{"$f":"IFERROR(IF(A55,0,IF(LEN('Painonpudotuksen seuranta'!$C58)=0,0,'Painonpudotuksen seuranta'!$C58)),\"\")","v":0}]
[{"$f":"IF((LEN('Painonpudotuksen seuranta'!$C59)=0),TRUE)","v":true},{"$f":"IFERROR(IF(A56,0,IF(LEN('Painonpudotuksen seuranta'!$B59)=0,0,'Painonpudotuksen seuranta'!$B59)),\"\")","v":"00:00:00"},{"$f":"IFERROR(IF(A56,0,IF(LEN('Painonpudotuksen seuranta'!$C59)=0,0,'Painonpudotuksen seuranta'!$C59)),\"\")","v":0}]
[{"$f":"IF((LEN('Painonpudotuksen seuranta'!$C60)=0),TRUE)","v":true},{"$f":"IFERROR(IF(A57,0,IF(LEN('Painonpudotuksen seuranta'!$B60)=0,0,'Painonpudotuksen seuranta'!$B60)),\"\")","v":"00:00:00"},{"$f":"IFERROR(IF(A57,0,IF(LEN('Painonpudotuksen seuranta'!$C60)=0,0,'Painonpudotuksen seuranta'!$C60)),\"\")","v":0}]
[{"$f":"IF((LEN('Painonpudotuksen seuranta'!$C61)=0),TRUE)","v":true},{"$f":"IFERROR(IF(A58,0,IF(LEN('Painonpudotuksen seuranta'!$B61)=0,0,'Painonpudotuksen seuranta'!$B61)),\"\")","v":"00:00:00"},{"$f":"IFERROR(IF(A58,0,IF(LEN('Painonpudotuksen seuranta'!$C61)=0,0,'Painonpudotuksen seuranta'!$C61)),\"\")","v":0}]
[{"$f":"IF((LEN('Painonpudotuksen seuranta'!$C62)=0),TRUE)","v":true},{"$f":"IFERROR(IF(A59,0,IF(LEN('Painonpudotuksen seuranta'!$B62)=0,0,'Painonpudotuksen seuranta'!$B62)),\"\")","v":"00:00:00"},{"$f":"IFERROR(IF(A59,0,IF(LEN('Painonpudotuksen seuranta'!$C62)=0,0,'Painonpudotuksen seuranta'!$C62)),\"\")","v":0}]
[{"$f":"IF((LEN('Painonpudotuksen seuranta'!$C63)=0),TRUE)","v":true},{"$f":"IFERROR(IF(A60,0,IF(LEN('Painonpudotuksen seuranta'!$B63)=0,0,'Painonpudotuksen seuranta'!$B63)),\"\")","v":"00:00:00"},{"$f":"IFERROR(IF(A60,0,IF(LEN('Painonpudotuksen seuranta'!$C63)=0,0,'Painonpudotuksen seuranta'!$C63)),\"\")","v":0}]
[{"$f":"IF((LEN('Painonpudotuksen seuranta'!$C64)=0),TRUE)","v":true},{"$f":"IFERROR(IF(A61,0,IF(LEN('Painonpudotuksen seuranta'!$B64)=0,0,'Painonpudotuksen seuranta'!$B64)),\"\")","v":"00:00:00"},{"$f":"IFERROR(IF(A61,0,IF(LEN('Painonpudotuksen seuranta'!$C64)=0,0,'Painonpudotuksen seuranta'!$C64)),\"\")","v":0}]
[{"$f":"IF((LEN('Painonpudotuksen seuranta'!$C65)=0),TRUE)","v":true},{"$f":"IFERROR(IF(A62,0,IF(LEN('Painonpudotuksen seuranta'!$B65)=0,0,'Painonpudotuksen seuranta'!$B65)),\"\")","v":"00:00:00"},{"$f":"IFERROR(IF(A62,0,IF(LEN('Painonpudotuksen seuranta'!$C65)=0,0,'Painonpudotuksen seuranta'!$C65)),\"\")","v":0}]
[{"$f":"IF((LEN('Painonpudotuksen seuranta'!$C66)=0),TRUE)","v":true},{"$f":"IFERROR(IF(A63,0,IF(LEN('Painonpudotuksen seuranta'!$B66)=0,0,'Painonpudotuksen seuranta'!$B66)),\"\")","v":"00:00:00"},{"$f":"IFERROR(IF(A63,0,IF(LEN('Painonpudotuksen seuranta'!$C66)=0,0,'Painonpudotuksen seuranta'!$C66)),\"\")","v":0}]
[{"$f":"IF((LEN('Painonpudotuksen seuranta'!$C67)=0),TRUE)","v":true},{"$f":"IFERROR(IF(A64,0,IF(LEN('Painonpudotuksen seuranta'!$B67)=0,0,'Painonpudotuksen seuranta'!$B67)),\"\")","v":"00:00:00"},{"$f":"IFERROR(IF(A64,0,IF(LEN('Painonpudotuksen seuranta'!$C67)=0,0,'Painonpudotuksen seuranta'!$C67)),\"\")","v":0}]
[{"$f":"IF((LEN('Painonpudotuksen seuranta'!$C68)=0),TRUE)","v":true},{"$f":"IFERROR(IF(A65,0,IF(LEN('Painonpudotuksen seuranta'!$B68)=0,0,'Painonpudotuksen seuranta'!$B68)),\"\")","v":"00:00:00"},{"$f":"IFERROR(IF(A65,0,IF(LEN('Painonpudotuksen seuranta'!$C68)=0,0,'Painonpudotuksen seuranta'!$C68)),\"\")","v":0}]
[{"$f":"IF((LEN('Painonpudotuksen seuranta'!$C69)=0),TRUE)","v":true},{"$f":"IFERROR(IF(A66,0,IF(LEN('Painonpudotuksen seuranta'!$B69)=0,0,'Painonpudotuksen seuranta'!$B69)),\"\")","v":"00:00:00"},{"$f":"IFERROR(IF(A66,0,IF(LEN('Painonpudotuksen seuranta'!$C69)=0,0,'Painonpudotuksen seuranta'!$C69)),\"\")","v":0}]
[{"$f":"IF((LEN('Painonpudotuksen seuranta'!$C70)=0),TRUE)","v":true},{"$f":"IFERROR(IF(A67,0,IF(LEN('Painonpudotuksen seuranta'!$B70)=0,0,'Painonpudotuksen seuranta'!$B70)),\"\")","v":"00:00:00"},{"$f":"IFERROR(IF(A67,0,IF(LEN('Painonpudotuksen seuranta'!$C70)=0,0,'Painonpudotuksen seuranta'!$C70)),\"\")","v":0}]
[{"$f":"IF((LEN('Painonpudotuksen seuranta'!$C71)=0),TRUE)","v":true},{"$f":"IFERROR(IF(A68,0,IF(LEN('Painonpudotuksen seuranta'!$B71)=0,0,'Painonpudotuksen seuranta'!$B71)),\"\")","v":"00:00:00"},{"$f":"IFERROR(IF(A68,0,IF(LEN('Painonpudotuksen seuranta'!$C71)=0,0,'Painonpudotuksen seuranta'!$C71)),\"\")","v":0}]
[{"$f":"IF((LEN('Painonpudotuksen seuranta'!$C72)=0),TRUE)","v":true},{"$f":"IFERROR(IF(A69,0,IF(LEN('Painonpudotuksen seuranta'!$B72)=0,0,'Painonpudotuksen seuranta'!$B72)),\"\")","v":"00:00:00"},{"$f":"IFERROR(IF(A69,0,IF(LEN('Painonpudotuksen seuranta'!$C72)=0,0,'Painonpudotuksen seuranta'!$C72)),\"\")","v":0}]
[{"$f":"IF((LEN('Painonpudotuksen seuranta'!$C73)=0),TRUE)","v":true},{"$f":"IFERROR(IF(A70,0,IF(LEN('Painonpudotuksen seuranta'!$B73)=0,0,'Painonpudotuksen seuranta'!$B73)),\"\")","v":"00:00:00"},{"$f":"IFERROR(IF(A70,0,IF(LEN('Painonpudotuksen seuranta'!$C73)=0,0,'Painonpudotuksen seuranta'!$C73)),\"\")","v":0}]
[{"$f":"IF((LEN('Painonpudotuksen seuranta'!$C74)=0),TRUE)","v":true},{"$f":"IFERROR(IF(A71,0,IF(LEN('Painonpudotuksen seuranta'!$B74)=0,0,'Painonpudotuksen seuranta'!$B74)),\"\")","v":"00:00:00"},{"$f":"IFERROR(IF(A71,0,IF(LEN('Painonpudotuksen seuranta'!$C74)=0,0,'Painonpudotuksen seuranta'!$C74)),\"\")","v":0}]
[{"$f":"IF((LEN('Painonpudotuksen seuranta'!$C75)=0),TRUE)","v":true},{"$f":"IFERROR(IF(A72,0,IF(LEN('Painonpudotuksen seuranta'!$B75)=0,0,'Painonpudotuksen seuranta'!$B75)),\"\")","v":"00:00:00"},{"$f":"IFERROR(IF(A72,0,IF(LEN('Painonpudotuksen seuranta'!$C75)=0,0,'Painonpudotuksen seuranta'!$C75)),\"\")","v":0}]
[{"$f":"IF((LEN('Painonpudotuksen seuranta'!$C76)=0),TRUE)","v":true},{"$f":"IFERROR(IF(A73,0,IF(LEN('Painonpudotuksen seuranta'!$B76)=0,0,'Painonpudotuksen seuranta'!$B76)),\"\")","v":"00:00:00"},{"$f":"IFERROR(IF(A73,0,IF(LEN('Painonpudotuksen seuranta'!$C76)=0,0,'Painonpudotuksen seuranta'!$C76)),\"\")","v":0}]
[{"$f":"IF((LEN('Painonpudotuksen seuranta'!$C77)=0),TRUE)","v":true},{"$f":"IFERROR(IF(A74,0,IF(LEN('Painonpudotuksen seuranta'!$B77)=0,0,'Painonpudotuksen seuranta'!$B77)),\"\")","v":"00:00:00"},{"$f":"IFERROR(IF(A74,0,IF(LEN('Painonpudotuksen seuranta'!$C77)=0,0,'Painonpudotuksen seuranta'!$C77)),\"\")","v":0}]
[{"$f":"IF((LEN('Painonpudotuksen seuranta'!$C78)=0),TRUE)","v":true},{"$f":"IFERROR(IF(A75,0,IF(LEN('Painonpudotuksen seuranta'!$B78)=0,0,'Painonpudotuksen seuranta'!$B78)),\"\")","v":"00:00:00"},{"$f":"IFERROR(IF(A75,0,IF(LEN('Painonpudotuksen seuranta'!$C78)=0,0,'Painonpudotuksen seuranta'!$C78)),\"\")","v":0}]
[{"$f":"IF((LEN('Painonpudotuksen seuranta'!$C79)=0),TRUE)","v":true},{"$f":"IFERROR(IF(A76,0,IF(LEN('Painonpudotuksen seuranta'!$B79)=0,0,'Painonpudotuksen seuranta'!$B79)),\"\")","v":"00:00:00"},{"$f":"IFERROR(IF(A76,0,IF(LEN('Painonpudotuksen seuranta'!$C79)=0,0,'Painonpudotuksen seuranta'!$C79)),\"\")","v":0}]
[{"$f":"IF((LEN('Painonpudotuksen seuranta'!$C80)=0),TRUE)","v":true},{"$f":"IFERROR(IF(A77,0,IF(LEN('Painonpudotuksen seuranta'!$B80)=0,0,'Painonpudotuksen seuranta'!$B80)),\"\")","v":"00:00:00"},{"$f":"IFERROR(IF(A77,0,IF(LEN('Painonpudotuksen seuranta'!$C80)=0,0,'Painonpudotuksen seuranta'!$C80)),\"\")","v":0}]
[{"$f":"IF((LEN('Painonpudotuksen seuranta'!$C81)=0),TRUE)","v":true},{"$f":"IFERROR(IF(A78,0,IF(LEN('Painonpudotuksen seuranta'!$B81)=0,0,'Painonpudotuksen seuranta'!$B81)),\"\")","v":"00:00:00"},{"$f":"IFERROR(IF(A78,0,IF(LEN('Painonpudotuksen seuranta'!$C81)=0,0,'Painonpudotuksen seuranta'!$C81)),\"\")","v":0}]
[{"$f":"IF((LEN('Painonpudotuksen seuranta'!$C82)=0),TRUE)","v":true},{"$f":"IFERROR(IF(A79,0,IF(LEN('Painonpudotuksen seuranta'!$B82)=0,0,'Painonpudotuksen seuranta'!$B82)),\"\")","v":"00:00:00"},{"$f":"IFERROR(IF(A79,0,IF(LEN('Painonpudotuksen seuranta'!$C82)=0,0,'Painonpudotuksen seuranta'!$C82)),\"\")","v":0}]
[{"$f":"IF((LEN('Painonpudotuksen seuranta'!$C83)=0),TRUE)","v":true},{"$f":"IFERROR(IF(A80,0,IF(LEN('Painonpudotuksen seuranta'!$B83)=0,0,'Painonpudotuksen seuranta'!$B83)),\"\")","v":"00:00:00"},{"$f":"IFERROR(IF(A80,0,IF(LEN('Painonpudotuksen seuranta'!$C83)=0,0,'Painonpudotuksen seuranta'!$C83)),\"\")","v":0}]
[{"$f":"IF((LEN('Painonpudotuksen seuranta'!$C84)=0),TRUE)","v":true},{"$f":"IFERROR(IF(A81,0,IF(LEN('Painonpudotuksen seuranta'!$B84)=0,0,'Painonpudotuksen seuranta'!$B84)),\"\")","v":"00:00:00"},{"$f":"IFERROR(IF(A81,0,IF(LEN('Painonpudotuksen seuranta'!$C84)=0,0,'Painonpudotuksen seuranta'!$C84)),\"\")","v":0}]
[{"$f":"IF((LEN('Painonpudotuksen seuranta'!$C85)=0),TRUE)","v":true},{"$f":"IFERROR(IF(A82,0,IF(LEN('Painonpudotuksen seuranta'!$B85)=0,0,'Painonpudotuksen seuranta'!$B85)),\"\")","v":"00:00:00"},{"$f":"IFERROR(IF(A82,0,IF(LEN('Painonpudotuksen seuranta'!$C85)=0,0,'Painonpudotuksen seuranta'!$C85)),\"\")","v":0}]
[{"$f":"IF((LEN('Painonpudotuksen seuranta'!$C86)=0),TRUE)","v":true},{"$f":"IFERROR(IF(A83,0,IF(LEN('Painonpudotuksen seuranta'!$B86)=0,0,'Painonpudotuksen seuranta'!$B86)),\"\")","v":"00:00:00"},{"$f":"IFERROR(IF(A83,0,IF(LEN('Painonpudotuksen seuranta'!$C86)=0,0,'Painonpudotuksen seuranta'!$C86)),\"\")","v":0}]
[{"$f":"IF((LEN('Painonpudotuksen seuranta'!$C87)=0),TRUE)","v":true},{"$f":"IFERROR(IF(A84,0,IF(LEN('Painonpudotuksen seuranta'!$B87)=0,0,'Painonpudotuksen seuranta'!$B87)),\"\")","v":"00:00:00"},{"$f":"IFERROR(IF(A84,0,IF(LEN('Painonpudotuksen seuranta'!$C87)=0,0,'Painonpudotuksen seuranta'!$C87)),\"\")","v":0}]
[{"$f":"IF((LEN('Painonpudotuksen seuranta'!$C88)=0),TRUE)","v":true},{"$f":"IFERROR(IF(A85,0,IF(LEN('Painonpudotuksen seuranta'!$B88)=0,0,'Painonpudotuksen seuranta'!$B88)),\"\")","v":"00:00:00"},{"$f":"IFERROR(IF(A85,0,IF(LEN('Painonpudotuksen seuranta'!$C88)=0,0,'Painonpudotuksen seuranta'!$C88)),\"\")","v":0}]
[{"$f":"IF((LEN('Painonpudotuksen seuranta'!$C89)=0),TRUE)","v":true},{"$f":"IFERROR(IF(A86,0,IF(LEN('Painonpudotuksen seuranta'!$B89)=0,0,'Painonpudotuksen seuranta'!$B89)),\"\")","v":"00:00:00"},{"$f":"IFERROR(IF(A86,0,IF(LEN('Painonpudotuksen seuranta'!$C89)=0,0,'Painonpudotuksen seuranta'!$C89)),\"\")","v":0}]
[{"$f":"IF((LEN('Painonpudotuksen seuranta'!$C90)=0),TRUE)","v":true},{"$f":"IFERROR(IF(A87,0,IF(LEN('Painonpudotuksen seuranta'!$B90)=0,0,'Painonpudotuksen seuranta'!$B90)),\"\")","v":"00:00:00"},{"$f":"IFERROR(IF(A87,0,IF(LEN('Painonpudotuksen seuranta'!$C90)=0,0,'Painonpudotuksen seuranta'!$C90)),\"\")","v":0}]
[{"$f":"IF((LEN('Painonpudotuksen seuranta'!$C91)=0),TRUE)","v":true},{"$f":"IFERROR(IF(A88,0,IF(LEN('Painonpudotuksen seuranta'!$B91)=0,0,'Painonpudotuksen seuranta'!$B91)),\"\")","v":"00:00:00"},{"$f":"IFERROR(IF(A88,0,IF(LEN('Painonpudotuksen seuranta'!$C91)=0,0,'Painonpudotuksen seuranta'!$C91)),\"\")","v":0}]
[{"$f":"IF((LEN('Painonpudotuksen seuranta'!$C92)=0),TRUE)","v":true},{"$f":"IFERROR(IF(A89,0,IF(LEN('Painonpudotuksen seuranta'!$B92)=0,0,'Painonpudotuksen seuranta'!$B92)),\"\")","v":"00:00:00"},{"$f":"IFERROR(IF(A89,0,IF(LEN('Painonpudotuksen seuranta'!$C92)=0,0,'Painonpudotuksen seuranta'!$C92)),\"\")","v":0}]
[{"$f":"IF((LEN('Painonpudotuksen seuranta'!$C93)=0),TRUE)","v":true},{"$f":"IFERROR(IF(A90,0,IF(LEN('Painonpudotuksen seuranta'!$B93)=0,0,'Painonpudotuksen seuranta'!$B93)),\"\")","v":"00:00:00"},{"$f":"IFERROR(IF(A90,0,IF(LEN('Painonpudotuksen seuranta'!$C93)=0,0,'Painonpudotuksen seuranta'!$C93)),\"\")","v":0}]
[{"$f":"IF((LEN('Painonpudotuksen seuranta'!$C94)=0),TRUE)","v":true},{"$f":"IFERROR(IF(A91,0,IF(LEN('Painonpudotuksen seuranta'!$B94)=0,0,'Painonpudotuksen seuranta'!$B94)),\"\")","v":"00:00:00"},{"$f":"IFERROR(IF(A91,0,IF(LEN('Painonpudotuksen seuranta'!$C94)=0,0,'Painonpudotuksen seuranta'!$C94)),\"\")","v":0}]
[{"$f":"IF((LEN('Painonpudotuksen seuranta'!$C95)=0),TRUE)","v":true},{"$f":"IFERROR(IF(A92,0,IF(LEN('Painonpudotuksen seuranta'!$B95)=0,0,'Painonpudotuksen seuranta'!$B95)),\"\")","v":"00:00:00"},{"$f":"IFERROR(IF(A92,0,IF(LEN('Painonpudotuksen seuranta'!$C95)=0,0,'Painonpudotuksen seuranta'!$C95)),\"\")","v":0}]
[{"$f":"IF((LEN('Painonpudotuksen seuranta'!$C96)=0),TRUE)","v":true},{"$f":"IFERROR(IF(A93,0,IF(LEN('Painonpudotuksen seuranta'!$B96)=0,0,'Painonpudotuksen seuranta'!$B96)),\"\")","v":"00:00:00"},{"$f":"IFERROR(IF(A93,0,IF(LEN('Painonpudotuksen seuranta'!$C96)=0,0,'Painonpudotuksen seuranta'!$C96)),\"\")","v":0}]
[{"$f":"IF((LEN('Painonpudotuksen seuranta'!$C97)=0),TRUE)","v":true},{"$f":"IFERROR(IF(A94,0,IF(LEN('Painonpudotuksen seuranta'!$B97)=0,0,'Painonpudotuksen seuranta'!$B97)),\"\")","v":"00:00:00"},{"$f":"IFERROR(IF(A94,0,IF(LEN('Painonpudotuksen seuranta'!$C97)=0,0,'Painonpudotuksen seuranta'!$C97)),\"\")","v":0}]
[{"$f":"IF((LEN('Painonpudotuksen seuranta'!$C98)=0),TRUE)","v":true},{"$f":"IFERROR(IF(A95,0,IF(LEN('Painonpudotuksen seuranta'!$B98)=0,0,'Painonpudotuksen seuranta'!$B98)),\"\")","v":"00:00:00"},{"$f":"IFERROR(IF(A95,0,IF(LEN('Painonpudotuksen seuranta'!$C98)=0,0,'Painonpudotuksen seuranta'!$C98)),\"\")","v":0}]
[{"$f":"IF((LEN('Painonpudotuksen seuranta'!$C99)=0),TRUE)","v":true},{"$f":"IFERROR(IF(A96,0,IF(LEN('Painonpudotuksen seuranta'!$B99)=0,0,'Painonpudotuksen seuranta'!$B99)),\"\")","v":"00:00:00"},{"$f":"IFERROR(IF(A96,0,IF(LEN('Painonpudotuksen seuranta'!$C99)=0,0,'Painonpudotuksen seuranta'!$C99)),\"\")","v":0}]
[{"$f":"IF((LEN('Painonpudotuksen seuranta'!$C100)=0),TRUE)","v":true},{"$f":"IFERROR(IF(A97,0,IF(LEN('Painonpudotuksen seuranta'!$B100)=0,0,'Painonpudotuksen seuranta'!$B100)),\"\")","v":"00:00:00"},{"$f":"IFERROR(IF(A97,0,IF(LEN('Painonpudotuksen seuranta'!$C100)=0,0,'Painonpudotuksen seuranta'!$C100)),\"\")","v":0}]
[{"$f":"IF((LEN('Painonpudotuksen seuranta'!$C101)=0),TRUE)","v":true},{"$f":"IFERROR(IF(A98,0,IF(LEN('Painonpudotuksen seuranta'!$B101)=0,0,'Painonpudotuksen seuranta'!$B101)),\"\")","v":"00:00:00"},{"$f":"IFERROR(IF(A98,0,IF(LEN('Painonpudotuksen seuranta'!$C101)=0,0,'Painonpudotuksen seuranta'!$C101)),\"\")","v":0}]
[{"$f":"IF((LEN('Painonpudotuksen seuranta'!$C102)=0),TRUE)","v":true},{"$f":"IFERROR(IF(A99,0,IF(LEN('Painonpudotuksen seuranta'!$B102)=0,0,'Painonpudotuksen seuranta'!$B102)),\"\")","v":"00:00:00"},{"$f":"IFERROR(IF(A99,0,IF(LEN('Painonpudotuksen seuranta'!$C102)=0,0,'Painonpudotuksen seuranta'!$C102)),\"\")","v":0}]
[{"$f":"IF((LEN('Painonpudotuksen seuranta'!$C103)=0),TRUE)","v":true},{"$f":"IFERROR(IF(A100,0,IF(LEN('Painonpudotuksen seuranta'!$B103)=0,0,'Painonpudotuksen seuranta'!$B103)),\"\")","v":"00:00:00"},{"$f":"IFERROR(IF(A100,0,IF(LEN('Painonpudotuksen seuranta'!$C103)=0,0,'Painonpudotuksen seuranta'!$C103)),\"\")","v":0}]
[{"$f":"IF((LEN('Painonpudotuksen seuranta'!$C104)=0),TRUE)","v":true},{"$f":"IFERROR(IF(A101,0,IF(LEN('Painonpudotuksen seuranta'!$B104)=0,0,'Painonpudotuksen seuranta'!$B104)),\"\")","v":"00:00:00"},{"$f":"IFERROR(IF(A101,0,IF(LEN('Painonpudotuksen seuranta'!$C104)=0,0,'Painonpudotuksen seuranta'!$C104)),\"\")","v":0}]
[{"$f":"IF((LEN('Painonpudotuksen seuranta'!$C105)=0),TRUE)","v":true},{"$f":"IFERROR(IF(A102,0,IF(LEN('Painonpudotuksen seuranta'!$B105)=0,0,'Painonpudotuksen seuranta'!$B105)),\"\")","v":"00:00:00"},{"$f":"IFERROR(IF(A102,0,IF(LEN('Painonpudotuksen seuranta'!$C105)=0,0,'Painonpudotuksen seuranta'!$C105)),\"\")","v":0}]
[{"$f":"IF((LEN('Painonpudotuksen seuranta'!$C106)=0),TRUE)","v":true},{"$f":"IFERROR(IF(A103,0,IF(LEN('Painonpudotuksen seuranta'!$B106)=0,0,'Painonpudotuksen seuranta'!$B106)),\"\")","v":"00:00:00"},{"$f":"IFERROR(IF(A103,0,IF(LEN('Painonpudotuksen seuranta'!$C106)=0,0,'Painonpudotuksen seuranta'!$C106)),\"\")","v":0}]
[{"$f":"IF((LEN('Painonpudotuksen seuranta'!$C107)=0),TRUE)","v":true},{"$f":"IFERROR(IF(A104,0,IF(LEN('Painonpudotuksen seuranta'!$B107)=0,0,'Painonpudotuksen seuranta'!$B107)),\"\")","v":"00:00:00"},{"$f":"IFERROR(IF(A104,0,IF(LEN('Painonpudotuksen seuranta'!$C107)=0,0,'Painonpudotuksen seuranta'!$C107)),\"\")","v":0}]
[{"$f":"IF((LEN('Painonpudotuksen seuranta'!$C108)=0),TRUE)","v":true},{"$f":"IFERROR(IF(A105,0,IF(LEN('Painonpudotuksen seuranta'!$B108)=0,0,'Painonpudotuksen seuranta'!$B108)),\"\")","v":"00:00:00"},{"$f":"IFERROR(IF(A105,0,IF(LEN('Painonpudotuksen seuranta'!$C108)=0,0,'Painonpudotuksen seuranta'!$C108)),\"\")","v":0}]
[{"$f":"IF((LEN('Painonpudotuksen seuranta'!$C109)=0),TRUE)","v":true},{"$f":"IFERROR(IF(A106,0,IF(LEN('Painonpudotuksen seuranta'!$B109)=0,0,'Painonpudotuksen seuranta'!$B109)),\"\")","v":"00:00:00"},{"$f":"IFERROR(IF(A106,0,IF(LEN('Painonpudotuksen seuranta'!$C109)=0,0,'Painonpudotuksen seuranta'!$C109)),\"\")","v":0}]
[{"$f":"IF((LEN('Painonpudotuksen seuranta'!$C110)=0),TRUE)","v":true},{"$f":"IFERROR(IF(A107,0,IF(LEN('Painonpudotuksen seuranta'!$B110)=0,0,'Painonpudotuksen seuranta'!$B110)),\"\")","v":"00:00:00"},{"$f":"IFERROR(IF(A107,0,IF(LEN('Painonpudotuksen seuranta'!$C110)=0,0,'Painonpudotuksen seuranta'!$C110)),\"\")","v":0}]